bitfinex-derivatives/quotes_SOLF0:USTF0_20250609
["timestamp","ask_amount","ask_price","bid_price","bid_amount"]
[1749507020085,6.2754,159.28,159.26,36.16]
[1749507021086,6.2758,159.27,159.26,36.16]
[1749507021389,0.04622591,159.28,159.23,36.18]
[1749507022190,0.04622591,159.28,159.23,42.4571]
[1749507022391,0.04622591,159.28,159.23,36.18]
[1749507022887,6.2761,159.27,159.23,42.4572]
[1749507023081,0.04622591,159.28,159.23,36.18]
[1749507023588,6.276,159.27,159.23,36.18]
[1749507024286,6.276,159.27,159.24,6.2769]
[1749507024885,6.2762,159.26,159.23,42.4572]
[1749507025187,0.04622591,159.28,159.23,36.18]
[1749507025394,0.04622591,159.28,159.21,8.67174525]
[1749507025584,6.2764,159.26,159.23,6.2771]
[1749507026282,6.2764,159.26,159.22,6.2776]
[1749507026485,6.2766,159.25,159.22,6.2776]
[1749507026786,0.04622591,159.28,159.21,6.278]
[1749507026991,6.2776,159.23,159.2,36.18]
[1749507027191,0.04718633,159.26,159.2,36.18]
[1749507028092,0.04718633,159.26,159.2,42.4584]
[1749507028293,6.2771,159.24,159.2,36.18]
[1749507028796,0.04718633,159.26,159.2,36.18]
[1749507029791,0.04718633,159.26,159.2,42.4583]
[1749507030490,0.04718633,159.26,159.2,36.18]
[1749507030798,0.04718633,159.26,159.19,6.2787]
[1749507030799,8.67174525,159.25,159.19,6.2787]
[1749507030986,2.22818633,159.26,159.17,47.04164525]
[1749507030987,8.67174525,159.23,159.17,36.18]
[1749507031192,0.0413744,159.22,159.17,36.18]
[1749507031691,0.0413744,159.22,159.16,6.2801]
[1749507032084,6.2788,159.2,159.16,6.2801]
[1749507032289,0.0413744,159.22,159.16,6.2801]
[1749507032588,6.2791,159.19,159.15,6.2804]
[1749507032793,8.67174525,159.21,159.15,6.2804]
[1749507033094,6.2791,159.19,159.15,6.2804]
[1749507033696,0.0413744,159.22,159.18,8.67174525]
[1749507033996,0.04316957,159.22,159.18,44.87174525]
[1749507034188,0.04316957,159.22,159.21,6.2778]
[1749507034590,0.04316957,159.22,159.18,44.87174525]
[1749507034790,0.04316957,159.22,159.21,6.2781]
[1749507034986,0.04316957,159.22,159.18,44.87174525]
[1749507035192,0.04316957,159.22,159.19,6.2787]
[1749507035390,0.04316957,159.22,159.18,36.2]
[1749507035799,6.2791,159.19,159.15,36.2]
[1749507036493,6.2793,159.18,159.15,36.2]
[1749507036695,6.32707435,159.18,159.15,36.2]
[1749507036896,6.32707435,159.18,159.15,42.4802]
[1749507037495,0.04777435,159.18,159.17,6.2797]
[1749507038597,2.1772,159.25,159.16,8.67174525]
[1749507038900,8.67174525,159.31,159.21,8.67174525]
[1749507039088,6.2762,159.26,159.21,44.75174525]
[1749507039290,8.67174525,159.27,159.18,8.67174525]
[1749507039491,8.67174525,159.27,159.18,36.08]
[1749507039688,0.04578219,159.24,159.21,0.04612567]
[1749507040299,6.2776,159.23,159.21,0.04612567]
[1749507040803,6.32288219,159.24,159.21,0.04612567]
[1749507040996,0.04578219,159.24,159.23,14.94904525]
[1749507041901,0.04578219,159.24,159.23,6.2773]
[1749507042694,0.04578219,159.24,159.23,14.94904525]
[1749507043100,38.3165,159.32,159.23,8.67174525]
[1749507043602,6.2748,159.3,159.27,6.2755]
[1749507043797,6.2748,159.3,159.22,36.08]
[1749507043798,38.3165,159.32,159.25,8.67174525]
[1749507043994,2.2365,159.32,159.25,8.67174525]
[1749507044192,0.0456776,159.3,159.27,0.04707526]
[1749507044592,0.0456776,159.3,159.27,8.71882051]
[1749507044792,0.0456776,159.3,159.29,14.94674525]
[1749507044996,0.0456776,159.3,159.29,6.275]
[1749507045801,0.0456776,159.3,159.28,6.2752]
[1749507046204,0.0456776,159.3,159.27,8.71882051]
[1749507046402,0.0456776,159.3,159.27,0.04707526]
[1749507047104,6.2752,159.29,159.27,0.04707526]
[1749507047403,0.0456776,159.3,159.27,0.04707526]
[1749507047809,8.67174525,159.29,159.23,36.06]
[1749507048009,0.0456776,159.3,159.23,36.06]
[1749507048801,6.2757,159.28,159.25,6.31966693]
[1749507049009,0.0456776,159.3,159.25,0.04316693]
[1749507049808,6.2756,159.28,159.25,6.31956693]
[1749507050908,8.67174525,159.29,159.25,0.04316693]
[1749507051903,14.4860787,159.29,159.25,0.04316693]
[1749507052107,5.86001105,159.3,159.25,0.04316693]
[1749507052512,0.0456776,159.3,159.25,0.04316693]
[1749507053307,6.2756,159.28,159.25,6.31946693]
[1749507054308,6.2752,159.29,159.26,6.2761]
[1749507054513,0.0456776,159.3,159.25,0.04316693]
[1749507054807,0.0456776,159.3,159.26,8.67174525]
[1749507055210,0.0456776,159.3,159.28,8.67174525]
[1749507055407,6.3204776,159.3,159.27,42.3357]
[1749507055806,0.0456776,159.3,159.27,36.06]
[1749507056003,0.0456776,159.3,159.28,6.2751]
[1749507056608,6.275,159.29,159.27,36.06]
[1749507056816,0.0456776,159.3,159.27,36.06]
[1749507057010,6.3203776,159.3,159.27,42.3355]
[1749507057709,6.275,159.29,159.27,36.06]
[1749507057910,0.0456776,159.3,159.27,36.06]
[1749507058109,0.0456776,159.3,159.25,0.04316693]
[1749507059217,8.71742285,159.3,159.25,0.04316693]
[1749507060015,6.276,159.27,159.25,0.04316693]
[1749507060416,8.71742285,159.3,159.25,0.04316693]
[1749507060918,0.0456776,159.3,159.25,0.04316693]
[1749507061620,0.0456776,159.3,159.29,6.275]
[1749507062314,5.81433345,159.4,159.29,6.28]
[1749507062516,12.08533345,159.4,159.34,8.67174525]
[1749507062821,41.87433345,159.41,159.34,8.67174525]
[1749507063013,6.2713,159.39,159.34,8.67174525]
[1749507063220,0.04260094,159.38,159.35,0.04023729]
[1749507063721,6.31430094,159.38,159.35,0.04023729]
[1749507064019,0.04260094,159.38,159.35,0.04023729]
[1749507064416,6.31430094,159.38,159.35,0.04023729]
[1749507064610,0.04260094,159.38,159.35,0.04023729]
[1749507064822,6.31440094,159.38,159.35,0.04023729]
[1749507065115,0.04260094,159.38,159.35,0.04023729]
[1749507065519,6.2722,159.36,159.35,0.04023729]
[1749507065919,6.272,159.37,159.35,0.04023729]
[1749507066124,0.04260094,159.38,159.35,0.04023729]
[1749507066528,0.04260094,159.38,159.37,6.2718]
[1749507066722,2.1177,159.44,159.37,35.96]
[1749507066928,2.1177,159.44,159.39,8.67174525]
[1749507067131,2.2732,159.47,159.41,8.67174525]
[1749507067423,2.1498,159.5,159.44,6.2691]
[1749507067625,0.04797578,159.49,159.45,0.04697093]
[1749507067924,6.2701,159.42,159.38,50.90294525]
[1749507068120,8.67174525,159.47,159.38,44.63174525]
[1749507068321,8.67174525,159.49,159.4,8.67174525]
[1749507068523,6.2701,159.42,159.38,42.2313]
[1749507068724,8.67174525,159.47,159.38,35.96]
[1749507068924,0.04026318,159.44,159.41,0.04153694]
[1749507069123,6.2699,159.42,159.41,0.04153694]
[1749507070017,8.67174525,159.43,159.35,35.94]
[1749507070217,6.2811,159.43,159.36,8.67174525]
[1749507070423,14.95284525,159.43,159.36,8.67174525]
[1749507070623,6.2722,159.36,159.35,35.94]
[1749507070825,50.89284525,159.43,159.35,35.94]
[1749507071225,6.2717,159.38,159.37,0.04347608]
[1749507073933,6.2712,159.39,159.37,0.04347608]
[1749507074134,0.04579482,159.41,159.37,0.04347608]
[1749507074935,6.2714,159.38,159.37,0.04347608]
[1749507085046,6.2734,159.33,159.32,35.94]
[1749507085247,8.67174525,159.36,159.29,35.94]
[1749507085543,2.2304,159.35,159.26,44.61174525]
[1749507085740,6.2744,159.31,159.26,44.61174525]
[1749507085943,2.2304,159.35,159.26,44.61174525]
[1749507086140,0.04449094,159.33,159.26,44.61174525]
[1749507086546,0.04449094,159.33,159.27,367.8156]
[1749507086747,6.2744,159.31,159.27,361.54]
[1749507087250,0.04449094,159.33,159.27,361.54]
[1749507087450,6.2748,159.3,159.26,44.61174525]
[1749507087650,6.2748,159.3,159.27,6.2757]
[1749507087850,8.67174525,159.32,159.23,35.94]
[1749507088055,0.04805822,159.29,159.23,44.61174525]
[1749507088250,0.04805822,159.29,159.25,8.67174525]
[1749507088852,0.04805822,159.29,159.25,6.2764]
[1749507089246,0.04805822,159.29,159.23,44.61174525]
[1749507089847,6.2756,159.28,159.25,6.2763]
[1749507090348,6.2758,159.27,159.24,6.2768]
[1749507090655,0.04805822,159.29,159.23,35.94]
[1749507090854,6.276,159.27,159.23,42.217]
[1749507091049,6.276,159.27,159.23,35.94]
[1749507091456,6.2765,159.26,159.23,42.2172]
[1749507091850,0.04805822,159.29,159.24,6.2768]
[1749507092050,6.2757,159.28,159.24,6.2768]
[1749507092245,0.04805822,159.29,159.23,35.94]
[1749507092455,0.04805822,159.29,159.2,35.96]
[1749507092456,8.71980347,159.29,159.2,35.96]
[1749507092651,2.1087,159.28,159.2,35.96]
[1749507092848,0.04710895,159.26,159.2,35.96]
[1749507093356,8.67174525,159.24,159.14,2.1472]
[1749507093555,6.32053901,159.21,159.17,6.2797]
[1749507094358,6.2786,159.2,159.16,6.2799]
[1749507094961,0.04203901,159.21,159.16,6.2799]
[1749507094962,6.279,159.19,159.16,6.2799]
[1749507095162,0.04203901,159.21,159.17,6.2797]
[1749507095360,0.04203901,159.21,159.14,46.77894525]
[1749507095361,0.04203901,159.21,159.16,8.67174525]
[1749507095860,0.04203901,159.21,159.2,6.2785]
[1749507097756,37.9887,159.28,159.22,6.2776]
[1749507097954,37.9887,159.28,159.22,8.67174525]
[1749507098151,40.3125,159.31,159.22,8.67174525]
[1749507098557,0.04709649,159.28,159.25,0.04805845]
[1749507099262,6.32269649,159.28,159.25,0.04805845]
[1749507099457,0.04709649,159.28,159.25,0.04805845]
[1749507100259,6.2762,159.26,159.25,0.04805845]
[1749507100555,0.04709649,159.28,159.25,0.04805845]
[1749507101668,0.04709649,159.28,159.25,8.7198037]
[1749507102170,0.04709649,159.28,159.26,6.2759]
[1749507102764,0.04709649,159.28,159.25,8.7198037]
[1749507102964,6.32249649,159.28,159.25,14.9962037]
[1749507104669,0.04709649,159.28,159.25,0.04805845]
[1749507105267,6.2761,159.27,159.25,0.04805845]
[1749507106476,6.2762,159.26,159.25,0.04805845]
[1749507120287,6.2775,159.23,159.2,6.2783]
[1749507120593,6.2775,159.23,159.19,35.88]
[1749507120782,35.88,159.29,159.19,35.88]
[1749507120783,8.67174525,159.26,159.19,35.88]
[1749507120982,48.4306,159.29,159.16,2.0718]
[1749507120983,8.67174525,159.24,159.16,35.88]
[1749507121292,6.2793,159.19,159.16,42.1599]
[1749507122183,6.2793,159.18,159.16,42.1599]
[1749507122880,5.25128021,159.22,159.16,35.88]
[1749507123280,8.72365565,159.22,159.15,6.2802]
[1749507123483,6.2795,159.18,159.15,6.2802]
[1749507123678,6.32054637,159.18,159.16,6.28]
[1749507123882,0.04104637,159.18,159.16,6.28]
[1749507124085,6.32054637,159.18,159.14,8.68034328]
[1749507124390,6.32054637,159.18,159.15,6.2803]
[1749507125387,6.2799,159.17,159.14,6.2807]
[1749507127292,0.04104637,159.18,159.14,6.2807]
[1749507127293,6.2801,159.16,159.14,6.2807]
[1749507127693,0.04104637,159.18,159.14,6.2807]
[1749507128097,0.04104637,159.18,159.15,6.2804]
[1749507128392,0.04104637,159.18,159.13,44.56034328]
[1749507128589,6.2797,159.17,159.15,6.2805]
[1749507129689,6.2797,159.17,159.14,6.2808]
[1749507130492,6.32054637,159.18,159.15,6.2805]
[1749507130791,8.72138965,159.18,159.09,474.00974047]
[1749507130990,8.68034328,159.16,159.09,397.28]
[1749507131293,0.04475423,159.14,159.09,35.8]
[1749507131790,8.72509751,159.14,159.06,35.8]
[1749507131988,6.2827,159.1,159.07,6.2834]
[1749507132183,6.2827,159.1,158.98,111.958019]
[1749507132184,0.04233839,159.1,158.98,111.958019]
[1749507132382,8.68034328,159.08,159.0,35.8]
[1749507132588,0.04256202,159.06,159.0,35.8]
[1749507132987,6.2845,159.05,159.01,6.2859]
[1749507133189,0.04256202,159.06,159.01,6.2859]
[1749507133386,8.7229053,159.06,159.0,35.8]
[1749507133691,0.04256202,159.06,159.0,35.8]
[1749507134588,0.04256202,159.06,158.97,44.50034328]
[1749507134794,6.2855,159.03,158.99,6.2866]
[1749507134995,0.04022246,159.03,158.99,6.2866]
[1749507135202,0.04022246,159.03,158.95,35.82]
[1749507135392,6.32552246,159.03,158.98,8.68034328]
[1749507135897,6.2856,159.02,158.99,6.2865]
[1749507136285,0.04022246,159.03,158.98,6.287]
[1749507136489,0.04022246,159.03,158.95,44.50034328]
[1749507136893,0.04022246,159.03,158.96,6.2879]
[1749507137094,8.72056574,159.03,158.95,35.82]
[1749507137901,8.68034328,159.01,158.9,35.82]
[1749507138096,0.04425896,158.97,158.91,8.68034328]
[1749507138494,0.04425896,158.97,158.92,8.68034328]
[1749507138697,0.04425896,158.97,158.94,8.68034328]
[1749507138897,0.04425896,158.97,158.96,8.68034328]
[1749507139098,0.04425896,158.97,158.96,14.96834328]
[1749507139704,5.81360351,159.13,158.96,8.68034328]
[1749507139998,8.68034328,159.1,158.97,4.2831]
[1749507140197,6.2847,159.05,159.01,14.96604328]
[1749507140398,8.68034328,159.08,158.98,35.82]
[1749507140692,6.2851,159.04,159.01,6.32674302]
[1749507141501,6.2851,159.04,159.01,15.0070863]
[1749507141703,6.32824524,159.05,159.01,15.0070863]
[1749507142202,6.2849,159.04,159.01,15.0070863]
[1749507142402,6.2849,159.04,159.01,6.32674302]
[1749507142902,6.32814524,159.05,159.01,6.32674302]
[1749507143202,6.32814524,159.05,159.02,6.2855]
[1749507144094,0.04364524,159.05,159.04,14.96514328]
[1749507144501,2.2152,159.11,159.06,6.284]
[1749507144700,2.2152,159.11,159.06,8.68034328]
[1749507144900,2.2152,159.11,159.04,8.68034328]
[1749507145198,6.2835,159.08,159.04,14.96504328]
[1749507145400,2.2152,159.11,159.04,8.68034328]
[1749507145701,0.04660342,159.09,159.06,0.04765855]
[1749507146004,6.2835,159.08,159.06,0.04765855]
[1749507146405,0.04660342,159.09,159.06,0.04765855]
[1749507146601,6.2836,159.07,159.06,0.04765855]
[1749507146905,8.7269467,159.09,159.02,35.84]
[1749507147101,6.2851,159.04,159.02,35.84]
[1749507147298,8.68034328,159.07,158.99,44.52034328]
[1749507147699,6.2849,159.04,159.01,6.33108526]
[1749507148103,0.04241769,159.05,159.01,0.04508526]
[1749507148301,6.2849,159.04,159.01,0.04508526]
[1749507148503,0.04241769,159.05,159.01,0.04508526]
[1749507148902,6.2849,159.04,159.01,6.33098526]
[1749507150204,6.2849,159.04,159.01,0.04508526]
[1749507150607,0.04241769,159.05,159.01,0.04508526]
[1749507151799,0.04241769,159.05,159.04,8.68034328]
[1749507151999,0.04241769,159.05,159.01,0.04508526]
[1749507152304,0.04241769,159.05,159.03,8.68034328]
[1749507152606,0.04241769,159.05,159.03,14.96534328]
[1749507153406,6.32691769,159.05,159.02,14.96574328]
[1749507153606,0.04241769,159.05,159.02,8.68034328]
[1749507153807,6.2852,159.04,159.01,6.33098526]
[1749507154008,0.04241769,159.05,159.02,8.68034328]
[1749507154194,0.04241769,159.05,159.03,8.68034328]
[1749507154394,0.04241769,159.05,159.04,6.2848]
[1749507154600,0.04241769,159.05,159.03,8.68034328]
[1749507155000,0.04241769,159.05,159.04,42.1248]
[1749507159411,0.04241769,159.05,159.04,47.3386957]
[1749507161104,0.04241769,159.05,159.04,42.1248]
[1749507161307,0.04241769,159.05,159.04,47.3386957]
[1749507163909,0.04241769,159.05,159.04,35.84]
[1749507165308,0.04241769,159.05,159.04,42.1248]
[1749507166613,0.04241769,159.05,159.04,47.3386957]
[1749507167919,6.2826,159.1,159.07,6.2835]
[1749507168115,6.2826,159.1,159.07,11.4973957]
[1749507168509,6.2826,159.1,159.04,35.84]
[1749507168510,6.2821,159.11,159.09,11.4967957]
[1749507168812,2.1119,159.15,159.09,5.2138957]
[1749507169018,2.1119,159.15,159.11,5.2138957]
[1749507169019,0.04207655,159.12,159.11,5.2138957]
[1749507169219,0.04207655,159.12,159.1,5.2138957]
[1749507170221,0.04207655,159.12,159.08,40.9937459]
[1749507170722,6.2829,159.09,159.08,0.0398502]
[1749507170921,5.2138957,159.1,159.02,40.9338957]
[1749507171122,6.2851,159.04,159.02,35.72]
[1749507171419,5.2138957,159.08,159.02,35.72]
[1749507171813,6.2846,159.05,159.02,42.0053]
[1749507172015,6.32760746,159.05,159.02,42.0490212]
[1749507172715,6.32760746,159.05,159.03,6.2852]
[1749507173123,6.32760746,159.05,159.02,35.7637212]
[1749507173320,6.32760746,159.05,159.02,42.0492212]
[1749507173815,6.2849,159.04,159.02,42.0492212]
[1749507174312,0.04300746,159.05,159.02,35.7637212]
[1749507175816,6.2849,159.04,159.02,42.0491212]
[1749507176417,6.32760746,159.05,159.03,6.2852]
[1749507176623,6.32760746,159.05,159.02,35.7637212]
[1749507176921,6.32760746,159.05,159.02,42.0491212]
[1749507177318,6.2849,159.04,159.02,42.0491212]
[1749507179020,6.32760746,159.05,159.02,42.0491212]
[1749507179325,0.04300746,159.05,159.02,42.0491212]
[1749507179526,6.2851,159.04,159.02,35.7637212]
[1749507179829,0.04300746,159.05,159.02,35.7637212]
[1749507180127,6.2852,159.03,159.02,35.7637212]
[1749507182328,6.2852,159.03,159.02,0.0437212]
[1749507183126,8.69533556,159.04,158.96,35.74]
[1749507183323,8.69533556,159.04,158.96,44.43533556]
[1749507183514,6.2863,159.01,158.98,6.287]
[1749507183715,6.2863,159.01,158.96,44.43533556]
[1749507183928,0.04758449,159.0,158.96,44.43533556]
[1749507184626,6.33408449,159.0,158.98,6.287]
[1749507185025,0.04758449,159.0,158.96,35.74]
[1749507185223,6.33418449,159.0,158.97,6.2873]
[1749507185430,6.33418449,159.0,158.97,8.69533556]
[1749507185630,0.04758449,159.0,158.97,8.69533556]
[1749507185820,0.04758449,159.0,158.98,6.2872]
[1749507186223,0.04758449,159.0,158.96,44.43533556]
[1749507186431,6.33428449,159.0,158.97,6.2874]
[1749507186932,0.04758449,159.0,158.97,6.2874]
[1749507187133,0.04758449,159.0,158.97,6.2875]
[1749507187433,0.04758449,159.0,158.96,35.74]
[1749507188232,0.04758449,159.0,158.97,6.2874]
[1749507188832,0.04758449,159.0,158.96,42.0278]
[1749507189227,0.04758449,159.0,158.96,35.74]
[1749507189634,6.33408449,159.0,158.97,6.2873]
[1749507191230,6.33408449,159.0,158.98,6.2872]
[1749507191425,6.2868,158.99,158.96,35.74]
[1749507191831,6.2868,158.99,158.97,6.2873]
[1749507192337,0.04758449,159.0,158.96,35.74]
[1749507192537,0.04758449,159.0,158.99,6.2868]
[1749507193038,0.04758449,159.0,158.98,6.2871]
[1749507193232,0.04758449,159.0,158.98,11.5069819]
[1749507193432,0.04758449,159.0,158.98,5.2198819]
[1749507193736,0.04758449,159.0,158.99,6.2868]
[1749507194331,0.04758449,159.0,158.98,6.287]
[1749507194531,0.04758449,159.0,158.97,5.2198819]
[1749507195236,0.04758449,159.0,158.98,6.2869]
[1749507195936,6.33408449,159.0,158.98,6.2869]
[1749507196637,6.33408449,159.0,158.97,11.5072819]
[1749507197341,6.2869,158.99,158.97,6.2874]
[1749507197535,6.2869,158.99,158.97,5.2198819]
[1749507197839,0.04758449,159.0,158.97,5.2198819]
[1749507198138,6.33438449,159.0,158.97,11.5072819]
[1749507198539,6.33438449,159.0,158.97,5.2198819]
[1749507198735,6.33438449,159.0,158.98,6.2871]
[1749507199040,6.2868,158.99,158.96,35.74]
[1749507199339,6.2868,158.99,158.97,6.2875]
[1749507199530,6.2873,158.98,158.96,40.9598819]
[1749507199728,0.04758449,159.0,158.96,35.74]
[1749507199935,0.04758449,159.0,158.97,5.2198819]
[1749507200337,6.33418449,159.0,158.97,5.2198819]
[1749507200534,6.33418449,159.0,158.97,11.5071819]
[1749507201643,0.04758449,159.0,158.98,6.2872]
[1749507201832,0.04758449,159.0,158.97,5.2198819]
[1749507202141,0.04758449,159.0,158.98,6.2869]
[1749507202337,0.04758449,159.0,158.99,5.2198819]
[1749507203041,2.0928,159.07,158.99,5.2198819]
[1749507203341,7.3126819,159.07,159.01,5.2198819]
[1749507203646,6.2856,159.03,159.01,5.2198819]
[1749507204036,6.2856,159.02,159.01,5.2198819]
[1749507204642,6.286,159.01,159.0,35.68251141]
[1749507205641,6.2858,159.02,159.0,35.68251141]
[1749507205839,0.04582002,159.04,159.01,5.2198819]
[1749507206239,6.2855,159.03,159.01,5.2198819]
[1749507206441,0.04582002,159.04,159.0,40.90239331]
[1749507208243,0.04582002,159.04,159.0,35.68251141]
[1749507208443,0.04582002,159.04,159.0,40.90239331]
[1749507208640,6.2854,159.03,159.0,40.90239331]
[1749507208838,0.04582002,159.04,159.02,5.2198819]
[1749507209244,0.04582002,159.04,159.03,6.2852]
[1749507211339,0.04582002,159.04,159.0,35.68251141]
[1749507211543,6.2853,159.03,159.0,40.90239331]
[1749507211746,0.04582002,159.04,159.0,40.90239331]
[1749507212050,0.04582002,159.04,159.01,5.2198819]
[1749507212345,0.04582002,159.04,159.0,35.68251141]
[1749507212738,0.04582002,159.04,159.01,5.2198819]
[1749507212945,0.04582002,159.04,159.03,5.2198819]
[1749507213644,0.04582002,159.04,159.03,11.5050819]
[1749507215039,2.2929,159.11,159.06,6.284]
[1749507215342,2.2929,159.11,159.06,11.5038819]
[1749507215545,6.2831,159.09,159.06,11.5038819]
[1749507215846,2.2929,159.11,159.08,5.2198819]
[1749507216037,6.2827,159.1,159.08,5.26053578]
[1749507216642,8.62286416,159.11,159.08,5.26053578]
[1749507216845,2.34056416,159.11,159.08,5.26053578]
[1749507217044,2.34056416,159.11,159.08,0.04065388]
[1749507217244,6.2829,159.09,159.08,0.04065388]
[1749507222548,2.34056416,159.11,159.03,6.285]
[1749507222549,5.2198819,159.1,159.03,6.285]
[1749507222746,5.2198819,159.1,159.04,35.52]
[1749507222944,5.2198819,159.08,159.04,35.52]
[1749507223342,6.2844,159.05,159.04,35.52]
[1749507226451,0.0408692,159.06,159.03,0.04092015]
[1749507226648,6.2848,159.04,159.03,0.04092015]
[1749507231256,6.2865,159.0,158.99,35.52]
[1749507237053,0.04453301,159.01,158.99,35.52]
[1749507237253,0.04453301,159.01,159.0,5.2198819]
[1749507238160,0.04453301,159.01,159.0,11.5062819]
[1749507238962,2.0944,159.05,159.0,5.2198819]
[1749507239361,2.0944,159.05,158.99,35.52]
[1749507239559,2.0944,159.05,158.99,40.7398819]
[1749507239760,0.04289997,159.04,159.0,0.0454458]
[1749507240063,6.2858,159.02,159.0,0.0454458]
[1749507240362,6.286,159.01,159.0,0.0454458]
[1749507240863,0.04289997,159.04,159.0,0.0454458]
[1749507241063,6.286,159.01,159.0,0.0454458]
[1749507241265,0.04289997,159.04,159.0,0.0454458]
[1749507241659,6.2854,159.03,159.0,0.0454458]
[1749507241858,0.04289997,159.04,159.01,5.2198819]
[1749507242062,0.04289997,159.04,159.03,5.2198819]
[1749507242362,0.04289997,159.04,159.03,40.7398819]
[1749507242864,6.32769997,159.04,159.03,40.7398819]
[1749507243355,6.32769997,159.04,159.03,35.52]
[1749507244363,0.04289997,159.04,159.01,5.2198819]
[1749507244564,0.04289997,159.04,159.02,35.52]
[1749507245264,6.2854,159.03,159.02,35.52]
[1749507249369,6.2854,159.03,159.01,5.2198819]
[1749507249666,6.2854,159.03,159.01,40.7398819]
[1749507251666,6.32789997,159.04,159.01,47.0258819]
[1749507252471,0.04289997,159.04,159.01,40.7398819]
[1749507253073,35.4,159.14,159.03,5.2198819]
[1749507253369,4.3866,159.18,159.08,5.2198819]
[1749507253573,5.2198819,159.15,159.08,11.5028819]
[1749507253869,5.2198819,159.16,159.08,11.5028819]
[1749507254065,0.04639008,159.14,159.1,0.04322793]
[1749507254775,6.2821,159.11,159.1,0.04322793]
[1749507255471,6.2832,159.08,159.07,35.4]
[1749507255669,5.2198819,159.14,159.07,40.6198819]
[1749507255869,5.2198819,159.16,159.09,5.2198819]
[1749507256069,6.2815,159.13,159.09,5.2198819]
[1749507256270,6.2815,159.13,159.09,40.6198819]
[1749507256574,6.32278912,159.13,159.09,40.66249499]
[1749507257073,6.32278912,159.13,159.09,46.94509499]
[1749507257474,6.32278912,159.13,159.1,6.2824]
[1749507257785,6.32278912,159.13,159.09,40.66249499]
[1749507257975,6.2818,159.12,159.09,40.66249499]
[1749507258676,6.32268912,159.13,159.09,46.94499499]
[1749507258876,0.04128912,159.13,159.11,5.2198819]
[1749507259278,6.32278912,159.13,159.11,5.2198819]
[1749507259472,0.04128912,159.13,159.11,5.2198819]
[1749507260979,6.2817,159.12,159.11,5.2198819]
[1749507261179,0.04128912,159.13,159.09,35.44261309]
[1749507261375,0.04128912,159.13,159.09,40.66249499]
[1749507261575,6.2819,159.12,159.09,40.66249499]
[1749507261978,6.2823,159.11,159.09,40.66249499]
[1749507262177,0.04128912,159.13,159.09,35.44261309]
[1749507262482,5.2198819,159.12,159.09,0.04261309]
[1749507262677,6.2825,159.1,159.09,0.04261309]
[1749507263079,2.258,159.12,159.09,5.26249499]
[1749507263383,2.258,159.12,159.09,0.04261309]
[1749507263778,6.2825,159.1,159.09,0.04261309]
[1749507268682,2.258,159.12,159.09,0.04261309]
[1749507269179,0.04128912,159.13,159.1,5.2198819]
[1749507269180,6.32298912,159.13,159.1,5.2198819]
[1749507269382,0.04128912,159.13,159.1,5.2198819]
[1749507269581,0.04128912,159.13,159.1,40.5998819]
[1749507269780,0.04128912,159.13,159.1,46.8821819]
[1749507270081,0.04128912,159.13,159.1,40.5998819]
[1749507270484,6.2817,159.12,159.1,40.5998819]
[1749507272180,0.04128912,159.13,159.1,40.5998819]
[1749507272385,5.2198819,159.24,159.12,10.4397638]
[1749507272678,2.2107,159.23,159.18,5.2198819]
[1749507273384,2.2107,159.23,159.19,0.04741261]
[1749507273385,0.04373085,159.22,159.19,0.04741261]
[1749507273583,6.2787,159.2,159.19,0.04741261]
[1749507280991,6.2793,159.18,159.17,35.38]
[1749507281290,5.2198819,159.21,159.15,5.2198819]
[1749507281591,5.2198819,159.21,159.14,35.38]
[1749507281786,5.2198819,159.19,159.14,35.38]
[1749507281982,5.2198819,159.19,159.15,0.04475942]
[1749507282285,0.04617271,159.18,159.17,5.2198819]
[1749507282491,0.046923,159.19,159.17,5.2198819]
[1749507283189,0.046923,159.19,159.17,11.4992819]
[1749507283690,0.046923,159.19,159.17,5.2198819]
[1749507283880,0.046923,159.19,159.18,6.2793]
[1749507284081,0.046923,159.19,159.17,5.2198819]
[1749507284488,0.046923,159.19,159.17,11.4993819]
[1749507284890,0.046923,159.19,159.17,5.2198819]
[1749507285193,0.046923,159.19,159.18,41.5193]
[1749507285690,6.2771,159.24,159.18,35.24]
[1749507285896,6.2771,159.24,159.21,5.2198819]
[1749507286085,4.2539,159.25,159.21,5.2198819]
[1749507286289,6.277,159.24,159.2,6.2782]